[Event "Titled Tuesday Blitz April 05 Early 2022"]
[White "Oganian, Miran"]
[Black "Pires, Marcos Vinicius Torsani"]
[WhiteFideId "4122488"]
[BlackFideId "2118939"]
[WhiteElo "2357"]
[BlackElo "2273"]
[Result "1-0"]
[Round "01"]
[TimeControl "180+1"]
[Date "2022.04.05"]
[WhiteClock "0:00:44"]
[BlackClock "0:00:24"]

1. e4 {[%clk 0:02:59]}  c5 {[%clk 0:02:57]} 2. Nf3 {[%clk 0:02:59]}  g6 {[%clk 0:02:57]} 3. d4 {[%clk 0:02:57]}  cxd4 {[%clk 0:02:57]} 4. Qxd4 {[%clk 0:02:58]}  Nf6 {[%clk 0:02:52]} 5. e5 {[%clk 0:02:58]}  Nc6 {[%clk 0:02:52]} 6. Qa4 {[%clk 0:02:58]}  Nd5 {[%clk 0:02:51]} 7. Qe4 {[%clk 0:02:53]}  Nc7 {[%clk 0:02:50]} 8. Nc3 {[%clk 0:02:51]}  Bg7 {[%clk 0:02:50]} 9. Bf4 {[%clk 0:02:43]}  O-O {[%clk 0:02:44]} 10. Be2 {[%clk 0:02:40]}  d6 {[%clk 0:02:31]} 11. O-O {[%clk 0:02:12]}  Nxe5 {[%clk 0:02:26]} 12. Nxe5 {[%clk 0:02:12]}  dxe5 {[%clk 0:02:27]} 13. Bxe5 {[%clk 0:02:12]}  Bf5 {[%clk 0:02:20]} 14. Qe3 {[%clk 0:02:07]}  Bxc2 {[%clk 0:02:08]} 15. Rac1 {[%clk 0:02:06]}  Bxe5 {[%clk 0:01:53]} 16. Qxe5 {[%clk 0:02:06]}  Bf5 {[%clk 0:01:49]} 17. Rfd1 {[%clk 0:02:05]}  Qb8 {[%clk 0:01:50]} 18. Qxe7 {[%clk 0:02:02]}  Re8 {[%clk 0:01:47]} 19. Qf6 {[%clk 0:01:59]}  Re6 {[%clk 0:01:42]} 20. Qh4 {[%clk 0:01:53]}  Qe8 {[%clk 0:01:23]} 21. Bc4 {[%clk 0:01:52]}  Qe7 {[%clk 0:01:13]} 22. Qf4 {[%clk 0:01:30]}  Re5 {[%clk 0:00:58]} 23. g4 {[%clk 0:01:21]}  Bxg4 {[%clk 0:00:58]} 24. Rd3 {[%clk 0:00:58]}  Bf5 {[%clk 0:00:51]} 25. Rg3 {[%clk 0:00:50]}  Re1+ {[%clk 0:00:48]} 26. Rxe1 {[%clk 0:00:49]}  Qxe1+ {[%clk 0:00:49]} 27. Kg2 {[%clk 0:00:49]}  Ne6 {[%clk 0:00:46]} 28. Qxf5 {[%clk 0:00:45]}  Nd4 {[%clk 0:00:24]} 29. Qxf7+ {[%clk 0:00:44]} 1-0


[Site "https://www.chess.com"]

[Event "Titled Tuesday Blitz April 05 Early 2022"]
[White "Omariev, Maksim"]
[Black "Terry, Renato"]
[WhiteFideId "4193423"]
[BlackFideId "3803457"]
[WhiteElo "2500"]
[BlackElo "2577"]
[Result "0-1"]
[Round "01"]
[TimeControl "180+1"]
[Date "2022.04.05"]
[WhiteClock "0:00:02"]
[BlackClock "0:01:24"]

1. g4 {[%clk 0:02:58]}  d5 {[%clk 0:02:44]} 2. Bg2 {[%clk 0:02:58]}  c6 {[%clk 0:02:35]} 3. h3 {[%clk 0:02:57]}  e5 {[%clk 0:02:35]} 4. d4 {[%clk 0:02:56]}  e4 {[%clk 0:02:30]} 5. c4 {[%clk 0:02:51]}  Be6 {[%clk 0:02:29]} 6. Nc3 {[%clk 0:02:43]}  g6 {[%clk 0:02:19]} 7. Qb3 {[%clk 0:02:28]}  Qd7 {[%clk 0:02:18]} 8. c5 {[%clk 0:02:06]}  f5 {[%clk 0:02:14]} 9. g5 {[%clk 0:02:01]}  h6 {[%clk 0:02:14]} 10. h4 {[%clk 0:01:52]}  Bg7 {[%clk 0:02:14]} 11. Qa4 {[%clk 0:01:23]}  hxg5 {[%clk 0:02:08]} 12. hxg5 {[%clk 0:01:01]}  Rxh1 {[%clk 0:02:08]} 13. Bxh1 {[%clk 0:01:01]}  Qc7 {[%clk 0:02:09]} 14. Bg2 {[%clk 0:00:35]}  f4 {[%clk 0:01:50]} 15. Bh3 {[%clk 0:00:30]}  Bf7 {[%clk 0:01:39]} 16. Bg4 {[%clk 0:00:28]}  Ne7 {[%clk 0:01:31]} 17. Nh3 {[%clk 0:00:28]}  e3 {[%clk 0:01:32]} 18. Ng1 {[%clk 0:00:07]}  Nd7 {[%clk 0:01:24]} 19. Nf3 {[%clk 0:00:07]}  exf2+ {[%clk 0:01:22]} 20. Kxf2 {[%clk 0:00:07]}  Nf8 {[%clk 0:01:23]} 21. Bd2 {[%clk 0:00:06]}  Be6 {[%clk 0:01:23]} 22. Rg1 {[%clk 0:00:05]}  Bxg4 {[%clk 0:01:23]} 23. Rxg4 {[%clk 0:00:06]}  Ne6 {[%clk 0:01:24]} 24. Qb4 {[%clk 0:00:04]}  Nf5 {[%clk 0:01:24]} 25. e3 {[%clk 0:00:03]}  fxe3+ {[%clk 0:01:24]} 26. Bxe3 {[%clk 0:00:04]}  O-O-O {[%clk 0:01:25]} 27. Qa4 {[%clk 0:00:03]}  Kb8 {[%clk 0:01:24]} 28. Bf4 {[%clk 0:00:02]}  Nxf4 {[%clk 0:01:24]} 0-1


[Site "https://www.chess.com"]

[Event "Titled Tuesday Blitz April 05 Early 2022"]
[White "Onslow, Alfie"]
[Black "Decuigniere, Tom"]
[WhiteFideId "436976"]
[BlackFideId "26093820"]
[WhiteElo "1884"]
[BlackElo "1997"]
[Result "1-0"]
[Round "01"]
[TimeControl "180+1"]
[Date "2022.04.05"]
[WhiteClock "0:00:20"]
[BlackClock "0:00:01"]

1. Nf3 {[%clk 0:03:00]}  d5 {[%clk 0:03:00]} 2. c4 {[%clk 0:02:59]}  e6 {[%clk 0:03:00]} 3. g3 {[%clk 0:02:56]}  Nf6 {[%clk 0:03:00]} 4. Bg2 {[%clk 0:02:56]}  Be7 {[%clk 0:03:00]} 5. O-O {[%clk 0:02:56]}  O-O {[%clk 0:03:00]} 6. b3 {[%clk 0:02:55]}  b6 {[%clk 0:03:01]} 7. Bb2 {[%clk 0:02:56]}  Bb7 {[%clk 0:03:01]} 8. Ne5 {[%clk 0:02:52]}  Nbd7 {[%clk 0:02:58]} 9. f4 {[%clk 0:02:47]}  c5 {[%clk 0:02:53]} 10. e3 {[%clk 0:02:40]}  Qc7 {[%clk 0:02:48]} 11. d3 {[%clk 0:02:36]}  Rad8 {[%clk 0:02:43]} 12. Qe2 {[%clk 0:02:28]}  a6 {[%clk 0:02:34]} 13. Nd2 {[%clk 0:02:27]}  b5 {[%clk 0:02:15]} 14. Rac1 {[%clk 0:02:03]}  bxc4 {[%clk 0:01:35]} 15. dxc4 {[%clk 0:01:59]}  Nxe5 {[%clk 0:01:07]} 16. Bxe5 {[%clk 0:01:40]}  Qc8 {[%clk 0:01:07]} 17. cxd5 {[%clk 0:01:24]}  exd5 {[%clk 0:01:00]} 18. e4 {[%clk 0:01:23]}  d4 {[%clk 0:00:51]} 19. Qd3 {[%clk 0:01:19]}  Qa8 {[%clk 0:00:47]} 20. Bxf6 {[%clk 0:01:18]}  Bxf6 {[%clk 0:00:45]} 21. Rf2 {[%clk 0:01:16]}  Be7 {[%clk 0:00:43]} 22. e5 {[%clk 0:01:14]}  Bxg2 {[%clk 0:00:35]} 23. Rxg2 {[%clk 0:01:15]}  Qd5 {[%clk 0:00:33]} 24. Qc4 {[%clk 0:01:08]}  Qb7 {[%clk 0:00:22]} 25. Qd3 {[%clk 0:00:55]}  Rfe8 {[%clk 0:00:18]} 26. Rf2 {[%clk 0:00:55]}  a5 {[%clk 0:00:16]} 27. Ne4 {[%clk 0:00:53]}  Qd5 {[%clk 0:00:15]} 28. Rc4 {[%clk 0:00:51]}  Ra8 {[%clk 0:00:13]} 29. Rfc2 {[%clk 0:00:50]}  Rec8 {[%clk 0:00:13]} 30. a3 {[%clk 0:00:45]}  h6 {[%clk 0:00:10]} 31. Qf3 {[%clk 0:00:31]}  Rab8 {[%clk 0:00:08]} 32. Nf6+ {[%clk 0:00:31]}  Bxf6 {[%clk 0:00:08]} 33. Qxd5 {[%clk 0:00:32]}  Be7 {[%clk 0:00:09]} 34. e6 {[%clk 0:00:31]}  f6 {[%clk 0:00:03]} 35. Qe4 {[%clk 0:00:21]}  Rxb3 {[%clk 0:00:01]} 36. Rxd4 {[%clk 0:00:20]} 1-0


[Site "https://www.chess.com"]

[Event "Titled Tuesday Blitz April 05 Early 2022"]
[White "Ozer, Omer Faruk"]
[Black "Kostina, Nadezhda"]
[WhiteFideId "6354564"]
[BlackFideId "4195876"]
[WhiteElo "2050"]
[BlackElo "1982"]
[Result "1-0"]
[Round "01"]
[TimeControl "180+1"]
[Date "2022.04.05"]
[WhiteClock "0:01:58"]
[BlackClock "0:00:01"]

1. e4 {[%clk 0:02:59]}  c5 {[%clk 0:02:52]} 2. Nc3 {[%clk 0:02:58]}  Nc6 {[%clk 0:02:47]} 3. g3 {[%clk 0:02:59]}  g6 {[%clk 0:02:46]} 4. Bg2 {[%clk 0:02:59]}  Bg7 {[%clk 0:01:56]} 5. d3 {[%clk 0:02:57]}  d6 {[%clk 0:01:51]} 6. Be3 {[%clk 0:02:56]}  Nd4 {[%clk 0:01:39]} 7. Qd2 {[%clk 0:02:55]}  Nf6 {[%clk 0:01:34]} 8. h3 {[%clk 0:02:54]}  Rb8 {[%clk 0:01:28]} 9. Nd1 {[%clk 0:02:53]}  b5 {[%clk 0:01:23]} 10. c3 {[%clk 0:02:52]}  Nc6 {[%clk 0:01:14]} 11. d4 {[%clk 0:02:44]}  cxd4 {[%clk 0:01:10]} 12. cxd4 {[%clk 0:02:44]}  Qa5 {[%clk 0:01:10]} 13. e5 {[%clk 0:02:41]}  Nb4 {[%clk 0:01:02]} 14. exf6 {[%clk 0:02:35]}  Nc2+ {[%clk 0:00:56]} 15. Kf1 {[%clk 0:02:34]}  Qxd2 {[%clk 0:00:52]} 16. Bxd2 {[%clk 0:02:35]}  Nxa1 {[%clk 0:00:50]} 17. fxg7 {[%clk 0:02:33]}  Rg8 {[%clk 0:00:50]} 18. Ne3 {[%clk 0:02:30]}  b4 {[%clk 0:00:45]} 19. Bc6+ {[%clk 0:02:24]}  Bd7 {[%clk 0:00:40]} 20. Bxd7+ {[%clk 0:02:24]}  Kxd7 {[%clk 0:00:41]} 21. Ke2 {[%clk 0:02:18]}  b3 {[%clk 0:00:39]} 22. a3 {[%clk 0:02:17]}  Nc2 {[%clk 0:00:35]} 23. Nf3 {[%clk 0:02:17]}  Rxg7 {[%clk 0:00:23]} 24. Rc1 {[%clk 0:02:16]}  Rc8 {[%clk 0:00:15]} 25. Nxc2 {[%clk 0:02:12]}  bxc2 {[%clk 0:00:14]} 26. Kd3 {[%clk 0:02:12]}  e5 {[%clk 0:00:12]} 27. dxe5 {[%clk 0:02:12]}  dxe5 {[%clk 0:00:10]} 28. Nxe5+ {[%clk 0:02:12]}  Ke6 {[%clk 0:00:09]} 29. Nf3 {[%clk 0:02:10]}  f5 {[%clk 0:00:09]} 30. Nd4+ {[%clk 0:02:04]}  Kd5 {[%clk 0:00:09]} 31. Nxc2 {[%clk 0:02:01]}  Re8 {[%clk 0:00:03]} 32. Ne3+ {[%clk 0:01:58]}  Kd6 {[%clk 0:00:01]} 33. Bb4+ {[%clk 0:01:57]}  Kd7 {[%clk 0:00:01]} 34. Nd5 {[%clk 0:01:58]} 1-0


[Site "https://www.chess.com"]

[Event "Titled Tuesday Blitz April 05 Early 2022"]
[White "Piliczewski, Bogusz"]
[Black "Vlassov, Nikolai"]
[WhiteFideId "1104144"]
[BlackFideId "4103360"]
[WhiteElo "1896"]
[BlackElo "2407"]
[Result "0-1"]
[Round "01"]
[TimeControl "180+1"]
[Date "2022.04.05"]
[WhiteClock "0:00:01"]
[BlackClock "0:00:22"]

1. d4 {[%clk 0:02:55]}  Nf6 {[%clk 0:02:59]} 2. Nf3 {[%clk 0:02:55]}  e6 {[%clk 0:02:59]} 3. Bf4 {[%clk 0:02:55]}  c5 {[%clk 0:02:59]} 4. c3 {[%clk 0:02:54]}  b6 {[%clk 0:02:59]} 5. e3 {[%clk 0:02:52]}  Bb7 {[%clk 0:02:59]} 6. h3 {[%clk 0:02:53]}  Be7 {[%clk 0:03:00]} 7. Be2 {[%clk 0:02:52]}  h6 {[%clk 0:03:00]} 8. O-O {[%clk 0:02:51]}  g5 {[%clk 0:03:00]} 9. Bh2 {[%clk 0:02:50]}  g4 {[%clk 0:03:00]} 10. hxg4 {[%clk 0:02:50]}  Nxg4 {[%clk 0:03:01]} 11. Bg3 {[%clk 0:02:50]}  h5 {[%clk 0:03:00]} 12. Nh2 {[%clk 0:02:24]}  Nxh2 {[%clk 0:02:49]} 13. Bxh2 {[%clk 0:02:24]}  h4 {[%clk 0:02:48]} 14. Bf3 {[%clk 0:02:20]}  Bxf3 {[%clk 0:02:41]} 15. Qxf3 {[%clk 0:02:20]}  d5 {[%clk 0:02:41]} 16. Be5 {[%clk 0:02:10]}  Rg8 {[%clk 0:02:28]} 17. Na3 {[%clk 0:02:04]}  Nc6 {[%clk 0:02:28]} 18. Bh2 {[%clk 0:01:56]}  Qd7 {[%clk 0:02:24]} 19. Rfd1 {[%clk 0:01:48]}  cxd4 {[%clk 0:02:14]} 20. cxd4 {[%clk 0:01:46]}  Bxa3 {[%clk 0:02:14]} 21. bxa3 {[%clk 0:01:45]}  O-O-O {[%clk 0:02:09]} 22. Rdc1 {[%clk 0:01:45]}  Kb7 {[%clk 0:02:09]} 23. Rc3 {[%clk 0:01:45]}  Rc8 {[%clk 0:02:10]} 24. Rac1 {[%clk 0:01:45]}  Ka8 {[%clk 0:01:27]} 25. Bf4 {[%clk 0:01:25]}  f6 {[%clk 0:01:19]} 26. Qd1 {[%clk 0:01:14]}  e5 {[%clk 0:01:16]} 27. dxe5 {[%clk 0:01:12]}  fxe5 {[%clk 0:01:16]} 28. Bh2 {[%clk 0:01:12]}  h3 {[%clk 0:01:09]} 29. Bg3 {[%clk 0:01:11]}  hxg2 {[%clk 0:01:08]} 30. Kxg2 {[%clk 0:01:10]}  Rh8 {[%clk 0:01:06]} 31. Kg1 {[%clk 0:00:49]}  d4 {[%clk 0:00:56]} 32. exd4 {[%clk 0:00:39]}  exd4 {[%clk 0:00:36]} 33. Rxc6 {[%clk 0:00:29]}  Rxc6 {[%clk 0:00:35]} 34. Rxc6 {[%clk 0:00:29]}  Qxc6 {[%clk 0:00:35]} 35. Bh2 {[%clk 0:00:11]}  Rg8+ {[%clk 0:00:32]} 36. Bg3 {[%clk 0:00:11]}  Qd5 {[%clk 0:00:28]} 37. Qd3 {[%clk 0:00:07]}  Rh8 {[%clk 0:00:25]} 38. Bh2 {[%clk 0:00:04]}  Re8 {[%clk 0:00:22]} 39. Qd2 {[%clk 0:00:01]}  d3 {[%clk 0:00:22]} 0-1


[Site "https://www.chess.com"]

[Event "Titled Tuesday Blitz April 05 Early 2022"]
[White "Pliukha, Myhajlo"]
[Black "Avazkhonov, Alikhon"]
[WhiteFideId "14164698"]
[BlackFideId "14208504"]
[WhiteElo "2229"]
[BlackElo "1739"]
[Result "1-0"]
[Round "01"]
[TimeControl "180+1"]
[Date "2022.04.05"]
[WhiteClock "0:00:12"]
[BlackClock "0:00:04"]

1. e4 {[%clk 0:02:59]}  c5 {[%clk 0:02:56]} 2. Nc3 {[%clk 0:02:59]}  d6 {[%clk 0:02:56]} 3. Nf3 {[%clk 0:02:57]}  e6 {[%clk 0:02:50]} 4. d4 {[%clk 0:02:57]}  cxd4 {[%clk 0:02:47]} 5. Qxd4 {[%clk 0:02:57]}  Nc6 {[%clk 0:02:41]} 6. Bb5 {[%clk 0:02:57]}  Bd7 {[%clk 0:02:41]} 7. Bxc6 {[%clk 0:02:54]}  Bxc6 {[%clk 0:02:42]} 8. O-O {[%clk 0:02:52]}  Nf6 {[%clk 0:02:39]} 9. Bg5 {[%clk 0:02:51]}  Be7 {[%clk 0:02:38]} 10. Rad1 {[%clk 0:02:50]}  O-O {[%clk 0:02:38]} 11. Bxf6 {[%clk 0:02:49]}  Bxf6 {[%clk 0:02:39]} 12. Qxd6 {[%clk 0:02:48]}  Qxd6 {[%clk 0:02:38]} 13. Rxd6 {[%clk 0:02:49]}  Bxc3 {[%clk 0:02:37]} 14. bxc3 {[%clk 0:02:50]}  Bxe4 {[%clk 0:02:38]} 15. Nd4 {[%clk 0:02:47]}  Rac8 {[%clk 0:02:17]} 16. f3 {[%clk 0:02:15]}  Bg6 {[%clk 0:02:14]} 17. Rd7 {[%clk 0:02:11]}  Rxc3 {[%clk 0:01:55]} 18. Rxb7 {[%clk 0:02:10]}  Rd8 {[%clk 0:01:55]} 19. Rxa7 {[%clk 0:02:00]}  h6 {[%clk 0:01:55]} 20. Ne2 {[%clk 0:01:31]}  Rxc2 {[%clk 0:01:53]} 21. Nf4 {[%clk 0:01:31]}  Rdd2 {[%clk 0:01:50]} 22. Kh1 {[%clk 0:01:14]}  Bf5 {[%clk 0:01:34]} 23. Rg1 {[%clk 0:00:29]}  e5 {[%clk 0:01:12]} 24. Ra5 {[%clk 0:00:29]}  f6 {[%clk 0:00:46]} 25. Nd5 {[%clk 0:00:28]}  Be6 {[%clk 0:00:29]} 26. Nb4 {[%clk 0:00:28]}  Rb2 {[%clk 0:00:28]} 27. a3 {[%clk 0:00:29]}  Bh3 {[%clk 0:00:25]} 28. Nd3 {[%clk 0:00:17]}  Rxd3 {[%clk 0:00:11]} 29. Ra8+ {[%clk 0:00:17]}  Kf7 {[%clk 0:00:10]} 30. gxh3 {[%clk 0:00:16]}  Rdd2 {[%clk 0:00:07]} 31. Ra7+ {[%clk 0:00:16]}  Ke6 {[%clk 0:00:08]} 32. Rgxg7 {[%clk 0:00:14]}  Rxh2+ {[%clk 0:00:06]} 33. Kg1 {[%clk 0:00:15]}  Rxh3 {[%clk 0:00:07]} 34. Ra6+ {[%clk 0:00:12]}  Kf5 {[%clk 0:00:06]} 35. Rf7 {[%clk 0:00:12]}  Rxf3 {[%clk 0:00:05]} 36. Raxf6+ {[%clk 0:00:11]}  Ke4 {[%clk 0:00:04]} 37. Rxf3 {[%clk 0:00:12]} 1-0


[Site "https://www.chess.com"]

[Event "Titled Tuesday Blitz April 05 Early 2022"]
[White "Postnikov, Daniil"]
[Black "Yushko, Olga"]
[WhiteFideId "4166329"]
[BlackFideId "14114500"]
[WhiteElo "2261"]
[BlackElo "2028"]
[Result "0-1"]
[Round "01"]
[TimeControl "180+1"]
[Date "2022.04.05"]
[WhiteClock "0:02:10"]
[BlackClock "0:02:20"]

1. d4 {[%clk 0:03:00]}  e6 {[%clk 0:02:56]} 2. c4 {[%clk 0:03:01]}  f5 {[%clk 0:02:56]} 3. Nf3 {[%clk 0:03:01]}  Nf6 {[%clk 0:02:56]} 4. Nc3 {[%clk 0:03:00]}  Be7 {[%clk 0:02:56]} 5. Bf4 {[%clk 0:02:58]}  O-O {[%clk 0:02:57]} 6. e3 {[%clk 0:02:58]}  d6 {[%clk 0:02:57]} 7. Be2 {[%clk 0:02:55]}  Qe8 {[%clk 0:02:57]} 8. Qc2 {[%clk 0:02:52]}  Qg6 {[%clk 0:02:56]} 9. O-O-O {[%clk 0:02:50]}  Ne4 {[%clk 0:02:52]} 10. Bd3 {[%clk 0:02:46]}  Nxc3 {[%clk 0:02:35]} 11. Qxc3 {[%clk 0:02:46]}  Qxg2 {[%clk 0:02:33]} 12. Nd2 {[%clk 0:02:24]}  Qxf2 {[%clk 0:02:29]} 13. Rdf1 {[%clk 0:02:23]}  Qh4 {[%clk 0:02:27]} 14. Bg3 {[%clk 0:02:17]}  Qh6 {[%clk 0:02:25]} 15. h4 {[%clk 0:02:12]}  Nc6 {[%clk 0:02:21]} 16. h5 {[%clk 0:02:12]}  Qxe3 {[%clk 0:02:20]} 17. Bf4 {[%clk 0:02:10]}  Qxd4 {[%clk 0:02:20]} 0-1


[Site "https://www.chess.com"]

[Event "Titled Tuesday Blitz April 05 Early 2022"]
[White "Pourkashiyan, Atousa"]
[Black "Svane, Frederik"]
[WhiteFideId "12502014"]
[BlackFideId "12923044"]
[WhiteElo "2247"]
[BlackElo "2459"]
[Result "0-1"]
[Round "01"]
[TimeControl "180+1"]
[Date "2022.04.05"]
[WhiteClock "0:00:41"]
[BlackClock "0:01:11"]

1. e4 {[%clk 0:03:00]}  c5 {[%clk 0:03:00]} 2. Nf3 {[%clk 0:03:00]}  g6 {[%clk 0:03:00]} 3. d4 {[%clk 0:02:57]}  cxd4 {[%clk 0:03:01]} 4. Nxd4 {[%clk 0:02:56]}  Nc6 {[%clk 0:03:02]} 5. c4 {[%clk 0:02:56]}  Nf6 {[%clk 0:03:02]} 6. Nc3 {[%clk 0:02:56]}  d6 {[%clk 0:03:02]} 7. Be2 {[%clk 0:02:55]}  Nxd4 {[%clk 0:03:03]} 8. Qxd4 {[%clk 0:02:55]}  Bg7 {[%clk 0:03:03]} 9. Bg5 {[%clk 0:02:54]}  O-O {[%clk 0:03:01]} 10. Qd2 {[%clk 0:02:54]}  a5 {[%clk 0:03:01]} 11. O-O {[%clk 0:02:49]}  a4 {[%clk 0:03:01]} 12. Rab1 {[%clk 0:02:38]}  Qa5 {[%clk 0:02:58]} 13. f3 {[%clk 0:02:29]}  Be6 {[%clk 0:02:58]} 14. Nd5 {[%clk 0:02:26]}  Qxd2 {[%clk 0:02:42]} 15. Nxe7+ {[%clk 0:02:22]}  Kh8 {[%clk 0:02:43]} 16. Bxd2 {[%clk 0:02:22]}  Rfe8 {[%clk 0:02:43]} 17. Nd5 {[%clk 0:02:20]}  Nxd5 {[%clk 0:02:44]} 18. cxd5 {[%clk 0:02:20]}  Bxd5 {[%clk 0:02:44]} 19. Bb5 {[%clk 0:02:18]}  Bxa2 {[%clk 0:02:39]} 20. Ra1 {[%clk 0:02:13]}  Bd4+ {[%clk 0:02:24]} 21. Kh1 {[%clk 0:02:12]}  Re5 {[%clk 0:02:17]} 22. Rxa2 {[%clk 0:02:02]}  Rxb5 {[%clk 0:02:17]} 23. Bc3 {[%clk 0:02:02]}  Bxc3 {[%clk 0:02:16]} 24. bxc3 {[%clk 0:02:03]}  Rb3 {[%clk 0:02:15]} 25. Rc1 {[%clk 0:02:00]}  a3 {[%clk 0:02:14]} 26. h3 {[%clk 0:01:57]}  b5 {[%clk 0:02:13]} 27. Kg1 {[%clk 0:01:51]}  Rc8 {[%clk 0:02:12]} 28. Rac2 {[%clk 0:01:46]}  Kg7 {[%clk 0:02:07]} 29. Kf2 {[%clk 0:01:46]}  Kf6 {[%clk 0:02:08]} 30. Ke2 {[%clk 0:01:46]}  Ke5 {[%clk 0:02:07]} 31. g3 {[%clk 0:01:41]}  b4 {[%clk 0:01:49]} 32. cxb4 {[%clk 0:01:36]}  Rxc2+ {[%clk 0:01:45]} 33. Rxc2 {[%clk 0:01:37]}  Rb2 {[%clk 0:01:46]} 34. Kd3 {[%clk 0:01:25]}  a2 {[%clk 0:01:44]} 35. f4+ {[%clk 0:01:24]}  Ke6 {[%clk 0:01:43]} 36. Rxb2 {[%clk 0:01:14]}  a1=Q {[%clk 0:01:44]} 37. Rb3 {[%clk 0:01:13]}  Qd1+ {[%clk 0:01:36]} 38. Kc4 {[%clk 0:01:07]}  Qc2+ {[%clk 0:01:35]} 39. Rc3 {[%clk 0:01:06]}  Qxe4+ {[%clk 0:01:36]} 40. Kb3 {[%clk 0:01:06]}  d5 {[%clk 0:01:35]} 41. b5 {[%clk 0:01:04]}  d4 {[%clk 0:01:34]} 42. Rc8 {[%clk 0:00:59]}  Qb7 {[%clk 0:01:24]} 43. Rc5 {[%clk 0:00:52]}  Qf3+ {[%clk 0:01:12]} 44. Kb4 {[%clk 0:00:52]}  d3 {[%clk 0:01:10]} 45. Kc3 {[%clk 0:00:42]}  d2+ {[%clk 0:01:10]} 46. Kxd2 {[%clk 0:00:42]}  Qf2+ {[%clk 0:01:10]} 47. Kd3 {[%clk 0:00:41]}  Qxc5 {[%clk 0:01:11]} 0-1


[Site "https://www.chess.com"]

[Event "Titled Tuesday Blitz April 05 Early 2022"]
[White "Prado Lobo, Jonas"]
[Black "Stanisz, Patryk"]
[WhiteFideId "32050666"]
[BlackFideId "1123106"]
[WhiteElo "2214"]
[BlackElo "1833"]
[Result "1-0"]
[Round "01"]
[TimeControl "180+1"]
[Date "2022.04.05"]
[WhiteClock "0:00:56"]
[BlackClock "0:00:16"]

1. d4 {[%clk 0:02:57]}  d5 {[%clk 0:02:58]} 2. c4 {[%clk 0:02:56]}  c6 {[%clk 0:02:58]} 3. e3 {[%clk 0:02:53]}  e6 {[%clk 0:02:57]} 4. Nf3 {[%clk 0:02:52]}  Nf6 {[%clk 0:02:57]} 5. Nc3 {[%clk 0:02:52]}  Nbd7 {[%clk 0:02:57]} 6. Bd3 {[%clk 0:02:51]}  dxc4 {[%clk 0:02:56]} 7. Bxc4 {[%clk 0:02:52]}  b5 {[%clk 0:02:57]} 8. Bb3 {[%clk 0:02:47]}  Bb7 {[%clk 0:02:55]} 9. O-O {[%clk 0:02:44]}  a6 {[%clk 0:02:55]} 10. e4 {[%clk 0:02:37]}  b4 {[%clk 0:02:55]} 11. e5 {[%clk 0:02:34]}  bxc3 {[%clk 0:02:53]} 12. exf6 {[%clk 0:02:33]}  cxb2 {[%clk 0:02:41]} 13. fxg7 {[%clk 0:02:24]}  bxa1=Q {[%clk 0:01:57]} 14. gxh8=Q {[%clk 0:02:23]}  Qf6 {[%clk 0:01:51]} 15. Qxh7 {[%clk 0:02:13]}  c5 {[%clk 0:01:42]} 16. d5 {[%clk 0:02:05]}  O-O-O {[%clk 0:01:37]} 17. Bg5 {[%clk 0:01:55]}  Qxd1 {[%clk 0:00:42]} 18. Rxd1 {[%clk 0:01:55]}  Qc3 {[%clk 0:00:43]} 19. Bxd8 {[%clk 0:01:54]}  Kxd8 {[%clk 0:00:44]} 20. Qxf7 {[%clk 0:01:41]}  exd5 {[%clk 0:00:38]} 21. Ba4 {[%clk 0:01:32]}  Be7 {[%clk 0:00:38]} 22. Ng5 {[%clk 0:01:15]}  Qf6 {[%clk 0:00:21]} 23. Ne6+ {[%clk 0:01:13]}  Kc8 {[%clk 0:00:20]} 24. Qe8+ {[%clk 0:01:07]}  Bd8 {[%clk 0:00:19]} 25. Qxd7+ {[%clk 0:01:04]}  Kb8 {[%clk 0:00:18]} 26. Nxd8 {[%clk 0:01:02]}  Qb6 {[%clk 0:00:15]} 27. Qxb7+ {[%clk 0:00:55]}  Qxb7 {[%clk 0:00:16]} 28. Nxb7 {[%clk 0:00:56]}  Kxb7 {[%clk 0:00:16]} 29. Rxd5 {[%clk 0:00:56]} 1-0


[Site "https://www.chess.com"]

[Event "Titled Tuesday Blitz April 05 Early 2022"]
[White "Pranav, V"]
[Black "Ferreira, Vitor Hugo Vieira"]
[WhiteFideId "25060783"]
[BlackFideId "2119765"]
[WhiteElo "2349"]
[BlackElo "2165"]
[Result "1-0"]
[Round "01"]
[TimeControl "180+1"]
[Date "2022.04.05"]
[WhiteClock "0:00:29"]
[BlackClock "0:00:12"]

1. e4 {[%clk 0:03:00]}  b6 {[%clk 0:02:31]} 2. d4 {[%clk 0:03:00]}  Bb7 {[%clk 0:02:31]} 3. Nc3 {[%clk 0:03:00]}  e6 {[%clk 0:02:30]} 4. Nf3 {[%clk 0:02:59]}  Nf6 {[%clk 0:02:29]} 5. Bd3 {[%clk 0:02:57]}  Bb4 {[%clk 0:02:29]} 6. Qe2 {[%clk 0:02:56]}  d5 {[%clk 0:02:28]} 7. e5 {[%clk 0:02:43]}  Ne4 {[%clk 0:02:10]} 8. O-O {[%clk 0:02:42]}  Nxc3 {[%clk 0:01:58]} 9. bxc3 {[%clk 0:02:43]}  Be7 {[%clk 0:01:51]} 10. h4 {[%clk 0:02:35]}  O-O {[%clk 0:01:48]} 11. Ng5 {[%clk 0:02:35]}  h6 {[%clk 0:01:29]} 12. Qh5 {[%clk 0:02:28]}  Ba6 {[%clk 0:01:24]} 13. Nf3 {[%clk 0:02:24]}  Bxd3 {[%clk 0:01:23]} 14. cxd3 {[%clk 0:02:25]}  f5 {[%clk 0:01:18]} 15. Qg6 {[%clk 0:02:18]}  Kh8 {[%clk 0:01:01]} 16. Qxe6 {[%clk 0:02:10]}  Bxh4 {[%clk 0:01:00]} 17. Ba3 {[%clk 0:01:55]}  Re8 {[%clk 0:00:59]} 18. Qxf5 {[%clk 0:01:53]}  Be7 {[%clk 0:01:00]} 19. Bc1 {[%clk 0:01:52]}  Rf8 {[%clk 0:00:58]} 20. Qe6 {[%clk 0:01:49]}  Qd7 {[%clk 0:00:57]} 21. Qxd7 {[%clk 0:01:46]}  Nxd7 {[%clk 0:00:57]} 22. Be3 {[%clk 0:01:47]}  c5 {[%clk 0:00:57]} 23. a4 {[%clk 0:01:40]}  a5 {[%clk 0:00:48]} 24. Rfb1 {[%clk 0:01:39]}  Rf5 {[%clk 0:00:47]} 25. Nd2 {[%clk 0:01:36]}  Raf8 {[%clk 0:00:46]} 26. Nf3 {[%clk 0:01:23]}  g5 {[%clk 0:00:45]} 27. e6 {[%clk 0:01:22]}  g4 {[%clk 0:00:36]} 28. exd7 {[%clk 0:01:13]}  gxf3 {[%clk 0:00:36]} 29. Rxb6 {[%clk 0:01:14]}  Bg5 {[%clk 0:00:20]} 30. Bxg5 {[%clk 0:00:58]}  Rxg5 {[%clk 0:00:20]} 31. g3 {[%clk 0:00:58]}  cxd4 {[%clk 0:00:20]} 32. Rd6 {[%clk 0:00:55]}  Rd8 {[%clk 0:00:19]} 33. cxd4 {[%clk 0:00:44]}  Rg4 {[%clk 0:00:19]} 34. Rxd5 {[%clk 0:00:43]}  Kg8 {[%clk 0:00:18]} 35. Re1 {[%clk 0:00:41]}  Kf7 {[%clk 0:00:18]} 36. Re3 {[%clk 0:00:40]}  Rg6 {[%clk 0:00:13]} 37. Rxf3+ {[%clk 0:00:39]}  Ke7 {[%clk 0:00:12]} 38. Re3+ {[%clk 0:00:37]}  Re6 {[%clk 0:00:11]} 39. Rxe6+ {[%clk 0:00:34]}  Kxe6 {[%clk 0:00:12]} 40. Rxa5 {[%clk 0:00:35]}  Rxd7 {[%clk 0:00:12]} 41. Ra6+ {[%clk 0:00:35]}  Kd5 {[%clk 0:00:13]} 42. Rxh6 {[%clk 0:00:33]}  Kxd4 {[%clk 0:00:13]} 43. a5 {[%clk 0:00:33]}  Kxd3 {[%clk 0:00:14]} 44. a6 {[%clk 0:00:34]}  Ke2 {[%clk 0:00:14]} 45. Kg2 {[%clk 0:00:33]}  Rd2 {[%clk 0:00:12]} 46. Re6+ {[%clk 0:00:31]}  Kd1 {[%clk 0:00:12]} 47. g4 {[%clk 0:00:29]}  Rd4 {[%clk 0:00:12]} 48. Kg3 {[%clk 0:00:29]}  Rd3+ {[%clk 0:00:12]} 49. f3 {[%clk 0:00:29]}  Ra3 {[%clk 0:00:12]} 50. g5 {[%clk 0:00:29]}  Rxa6 {[%clk 0:00:12]} 51. Rxa6 {[%clk 0:00:29]} 1-0


[Site "https://www.chess.com"]